fUSD/lending_fUSD_20260414
["ID","MTS","AMOUNT","RATE_DAILY","PERIOD"]
[420463851,1776106243942,-478.97201987,0.0001501,2]
[420463852,1776106244000,-4461.36695267,0.0001501,2]
[420463853,1776106244063,-241714.3214056,0.0001501,2]
[420463862,1776106246491,-803.82022665,0.00014994,2]
[420463863,1776106246506,-4651.17762124,0.0001501,2]
[420463864,1776106246518,-2528.300001,0.0001501,2]
[420463865,1776106246963,-276.99182424,0.0001501,2]
[420463914,1776106249667,-21276.24226221,0.0001501,2]
[420463915,1776106249680,-390.26603471,0.0001501,2]
[420463916,1776106266668,5532.0,0.000121,5]
[420463917,1776106266890,4468.01,0.00011,3]
[420463918,1776106266922,1063.99,0.00011,3]
[420463919,1776106267162,5802.0,0.0001,2]
[420463920,1776106273338,507.0,0.000135,2]
[420463921,1776106290544,886.47576679,0.0001,2]
[420463922,1776106412961,210.0,0.0001385,2]
[420463923,1776106445602,150.0,0.00013946,30]
[420463924,1776106445995,197.96,0.0001544,30]
[420463925,1776106461634,-1500.0,0.00013856,2]
[420463926,1776106506699,1051.89,0.00013811,2]
[420463927,1776106536638,150.0,0.0001545,30]
[420463928,1776106624912,500.0,0.00013544,2]
[420463929,1776106633084,507.0,0.000135,2]
[420463930,1776106660011,3240.0,0.00013425,2]
[420463931,1776106712399,1701.12,0.000119,2]
[420463932,1776106712495,10000.01,0.000119,2]
[420463933,1776106712546,2153.36083445,0.000119,2]
[420463934,1776106715826,4498.36,0.00013317,2]
[420463935,1776106804465,1500.0,0.00014299,30]
[420463936,1776106808214,205.0,9.8e-05,2]
[420463937,1776106830034,1000.0,0.00013264,2]
[420463938,1776106830121,1000.0,0.00011622,2]
[420463939,1776106830200,1000.0,0.00012844,2]
[420463940,1776106830298,1000.0,0.00013114,2]
[420463941,1776106830439,1000.0,0.00013647,2]
[420463942,1776106830711,1000.0,0.00013213,2]
[420463943,1776106830813,1000.0,0.00011782,2]
[420463944,1776106838596,255.5977211,0.000165,30]
[420463945,1776106847002,-1000.0,0.00013818,2]
[420463946,1776106862032,-1000.0,0.00013903,2]
[420463947,1776106867249,151.0,0.00013903,2]
[420463948,1776106870063,156.46885623,0.00013903,2]
[420463949,1776106871472,170.14099679,0.00013903,2]
[420463950,1776106871507,152.0,0.00010739,2]
[420463951,1776106910079,270.42800363,0.000107,2]
[420463952,1776106917815,9729.58199637,0.000107,2]
[420463953,1776106917853,10000.01,0.000107,2]
[420463954,1776106917884,10000.01,0.000107,2]
[420463955,1776106917923,10000.01,0.000107,2]
[420463956,1776106917962,10000.01,0.000107,2]
[420463957,1776106917990,10000.01,0.000107,2]
[420463958,1776106918069,10000.01,0.000107,2]
[420463959,1776106918125,10000.01,0.000107,2]
[420463960,1776106918183,10000.01,0.000107,2]
[420463961,1776106918217,10000.01,0.000107,2]
[420463962,1776106927520,-300.0,0.00010699,2]
[420463963,1776106931011,-3372.04014698,0.000107,2]
[420463964,1776106931116,-10000.01,0.000107,2]
[420463965,1776106931207,-10000.01,0.000107,2]
[420463966,1776106931259,-10000.01,0.000107,2]
[420463967,1776106933428,-10000.01,0.000107,2]
[420463968,1776106933614,-10000.01,0.000107,2]
[420463969,1776106933767,-10000.01,0.000107,2]
[420463970,1776106933911,-10000.01,0.000107,2]
[420463971,1776106934027,-10000.01,0.000107,2]
[420463972,1776106934127,-10000.01,0.000107,2]
[420463973,1776106939322,-10000.01,0.000107,2]
[420463974,1776106939454,-10000.01,0.000107,2]
[420463975,1776106945470,-1980.56903217,0.000107,2]
[420463976,1776106945507,-6038.87193566,0.000107,2]
[420463977,1776106948962,-420.0,0.00011761,2]
[420463978,1776106964951,-323.0,0.0001177,2]
[420463979,1776106980711,-600.0,0.0001177,2]
[420463980,1776106980758,-179.94212262,0.000127,2]
[420463981,1776106999000,200.0,0.00011,2]
[420463982,1776107032472,150.0,0.00015454,30]
[420463984,1776107114500,150.0,0.00012003,30]
[420463985,1776107114858,181.47,0.00013289,30]
[420463986,1776107115334,272.2,0.00014575,30]
[420463987,1776107115726,362.94,0.00015861,30]
[420463989,1776107196830,150.0,0.00012026,30]
[420463990,1776107197207,156.86,0.00013315,30]
[420463991,1776107197544,235.3,0.00014603,30]
[420463992,1776107198137,313.73,0.00015892,30]
[420463993,1776107207470,1600.0,0.00013175,2]
[420463994,1776107284779,150.0,0.00012027,30]
[420463995,1776107285138,150.0,0.00013316,30]
[420463996,1776107286357,202.62,0.00014605,30]
[420463997,1776107286718,270.16,0.00015893,30]
[420463998,1776107329776,-227.0,0.000135,2]
[420463999,1776107352790,506.0,0.000135,2]
[420464000,1776107381582,150.0,0.00011687,30]
[420464001,1776107381897,150.0,0.00012939,30]
[420464002,1776107388173,173.11,0.00014191,30]
[420464003,1776107388644,230.81,0.00015443,30]
[420464004,1776107389865,200.0,0.00013149,2]
[420464005,1776107393429,250.0,0.00013,2]
[420464011,1776107432113,-195.0,0.00013539,2]
[420464012,1776107432131,-250.32679947,0.00013539,2]
[420464013,1776107432143,-450.0,0.00013539,2]
[420464014,1776107432155,-1641.08280428,0.00013539,2]
[420464015,1776107432173,-2658.59039625,0.00013539,2]
[420464016,1776107432184,-355.0,0.00013539,2]
[420464017,1776107432194,-5000.0,0.00013642,2]
[420464018,1776107432210,-381.34221114,0.00013642,2]
[420464019,1776107432226,-179.62420294,0.00013659,2]
[420464020,1776107432235,-298.82,0.00013699,2]
[420464021,1776107432246,-652.81649462,0.00013745,2]
[420464022,1776107432259,-12062.97506655,0.00013745,2]
[420464023,1776107432274,-151.0,0.00013746,2]
[420464024,1776107432283,-151.0,0.00013746,2]
[420464025,1776107432294,-282.13951795,0.00013759,2]
[420464026,1776107432310,-179.62420292,0.00013807,2]
[420464027,1776107432323,-170.90501259,0.00013832,2]
[420464028,1776107432334,-292.6700003,0.00013883,2]
[420464029,1776107432363,-256.35751889,0.00013901,14]
[420464030,1776107432374,-179.62420292,0.00013955,2]
[420464031,1776107432388,-150.0,0.00013971,2]
[420464032,1776107432427,-468.13939116,0.00013971,2]
[420464033,1776107432440,-566.08324831,0.00013971,2]
[420464034,1776107432453,-500.0,0.00013971,2]
[420464035,1776107432475,-209.40437684,0.00013971,2]
[420464038,1776107432484,-500.0,0.00013973,2]
[420464041,1776107432494,-9999.99,0.00013977,2]
[420464045,1776107432511,-3684.53,0.00013977,2]
[420464046,1776107432521,-150.0,0.00013977,2]
[420464048,1776107432530,-1000.0,0.00013995,2]
[420464050,1776107432543,-539.79299729,0.00014,2]
[420464052,1776107432553,-500.0,0.00014026,2]
[420464054,1776107432562,-500.0,0.00014036,2]
[420464056,1776107432571,-1057.83,0.00014036,2]
[420464058,1776107432586,-500.0,0.00014036,2]
[420464060,1776107432596,-17372.00310294,0.00014045,2]
[420464061,1776107432605,-151.0,0.00014055,2]
[420464062,1776107432615,-174.61919141,0.00014055,2]
[420464063,1776107432631,-693.3919763,0.00014055,2]
[420464064,1776107432653,-209.40437684,0.00014055,2]
[420464065,1776107432663,-1852.42,0.00014064,2]
[420464066,1776107432672,-500.0,0.00014081,2]
[420464067,1776107432696,-200.0,0.00014082,2]
[420464068,1776107432706,-721.12765535,0.00014082,2]
[420464069,1776107432721,-1428.38747117,0.00014082,2]
[420464070,1776107432742,-151.0,0.00014082,2]
[420464071,1776107432751,-151.0,0.00014082,2]
[420464072,1776107432763,-151.0,0.00014082,2]
[420464073,1776107432782,-151.0,0.00014082,2]
[420464074,1776107432792,-151.0,0.00014082,2]
[420464075,1776107432807,-151.0,0.00014082,2]
[420464076,1776107432830,-151.0,0.00014082,2]
[420464077,1776107432839,-151.0,0.00014082,2]
[420464078,1776107432858,-500.0,0.00014082,2]
[420464079,1776107432874,-151.0,0.00014082,2]
[420464080,1776107432910,-500.0,0.00014082,2]
[420464081,1776107432922,-500.0,0.00014082,2]
[420464082,1776107432940,-253.95132556,0.00014082,2]
[420464083,1776107432954,-500.0,0.00014082,2]
[420464084,1776107432969,-500.0,0.00014082,2]
[420464085,1776107432986,-500.0,0.00014082,2]
[420464086,1776107433001,-500.0,0.00014082,2]
[420464087,1776107433011,-500.0,0.00014082,2]
[420464088,1776107433035,-500.0,0.00014082,2]
[420464089,1776107433044,-500.0,0.00014082,2]
[420464090,1776107433063,-500.0,0.00014082,2]
[420464091,1776107433073,-500.0,0.00014082,2]
[420464092,1776107433082,-151.0,0.00014082,2]
[420464093,1776107433098,-743.50770149,0.00014082,2]
[420464094,1776107433107,-151.0,0.00014082,2]
[420464095,1776107433118,-500.0,0.00014082,2]
[420464096,1776107433128,-500.0,0.00014082,2]
[420464097,1776107433140,-500.0,0.00014082,2]
[420464098,1776107433151,-500.0,0.00014082,2]
[420464099,1776107433161,-500.0,0.00014082,2]
[420464100,1776107433175,-259.65677148,0.00014082,2]
[420464101,1776107433184,-279.9045709,0.00014082,2]
[420464102,1776107433194,-8459.7166,0.0001409,2]
[420464103,1776107433205,-2000.0,0.000141,2]
[420464104,1776107433220,-151.0,0.0001411,2]
[420464105,1776107433230,-342.14457103,0.00014133,2]
[420464106,1776107433239,-500.0,0.00014136,2]
[420464107,1776107433250,-151.0,0.00014165,2]
[420464108,1776107433268,-1607.31340215,0.0001419,2]
[420464109,1776107433279,-500.0,0.00014191,2]
[420464110,1776107433292,-227.61817,0.000142,2]
[420464111,1776107433312,-2000.0,0.000142,2]
[420464112,1776107433324,-4207.62099328,0.00014219,2]
[420464113,1776107433334,-6777.4493,0.0001422,2]
[420464114,1776107433350,-2766.4344621,0.0001422,2]
[420464115,1776107433369,-2500.0,0.0001422,2]
[420464116,1776107433390,-2567.41734625,0.0001422,2]
[420464117,1776107433420,-5000.0,0.0001422,2]
[420464118,1776107433450,-151.0,0.0001422,2]
[420464119,1776107433466,-6934.80467683,0.00014232,2]
[420464120,1776107433488,-500.0,0.00014246,2]
[420464121,1776107433515,-151.0,0.00014275,2]
[420464122,1776107433524,-192.19335993,0.00014284,2]
[420464123,1776107433549,-151.0,0.00014297,2]
[420464124,1776107433558,-3727.41,0.00014299,2]
[420464125,1776107433574,-200.966,0.00014299,2]
[420464126,1776107433586,-2000.0,0.000143,2]
[420464127,1776107433607,-500.0,0.00014301,2]
[420464128,1776107433616,-500.0,0.00014301,2]
[420464129,1776107433625,-213.37117279,0.0001431,2]
[420464130,1776107433643,-24879.83339967,0.00014311,2]
[420464131,1776107434493,-1134.09669,0.00014311,2]
[420464132,1776107434514,-1000.0,0.00014311,2]
[420464133,1776107438236,-169.22,0.00013742,2]
[420464134,1776107438251,-1556.51814284,0.00014311,2]
[420464135,1776107438274,-151.0,0.00014317,2]
[420464136,1776107438289,-500.0,0.00014319,2]
[420464137,1776107438307,-150.40030716,0.00014319,2]
[420464138,1776107438322,-349.59969284,0.00014319,2]
[420464139,1776107438338,-500.0,0.00014319,2]
[420464140,1776107438362,-500.0,0.00014319,2]
[420464141,1776107438372,-500.0,0.00014319,2]
[420464142,1776107438383,-500.0,0.00014319,2]
[420464143,1776107438403,-500.0,0.00014319,2]
[420464144,1776107438413,-25.86358043,0.00014319,2]
[420464145,1776107438436,-474.13641957,0.00014319,2]
[420464146,1776107438458,-500.0,0.00014319,2]
[420464147,1776107438469,-492.25166302,0.00014319,2]
[420464148,1776107438489,-7.74833698,0.00014319,2]
[420464149,1776107438503,-349.73684697,0.00014319,2]
[420464150,1776107438515,-326.12775922,0.00014319,2]
[420464151,1776107438545,-173.87224078,0.00014319,2]
[420464152,1776107438558,-500.0,0.00014319,2]
[420464153,1776107438570,-500.0,0.00014319,2]
[420464154,1776107438595,-380.6816339,0.00014319,2]
[420464155,1776107438607,-500.0,0.00014319,2]
[420464156,1776107438621,-500.0,0.00014319,2]
[420464157,1776107438636,-500.0,0.00014319,2]
[420464158,1776107438650,-500.0,0.00014319,2]
[420464159,1776107438665,-500.0,0.00014319,2]
[420464160,1776107438696,-500.0,0.00014319,2]
[420464161,1776107438706,-500.0,0.00014319,2]
[420464162,1776107438716,-500.0,0.00014319,2]
[420464163,1776107438737,-500.0,0.00014319,2]
[420464164,1776107438747,-500.0,0.00014319,2]
[420464165,1776107438757,-500.0,0.00014319,2]
[420464166,1776107438772,-508.98990694,0.00014319,2]
[420464167,1776107438782,-500.0,0.00014319,2]
[420464168,1776107438794,-255.44522896,0.00014319,2]
[420464169,1776107438804,-279.89796335,0.00014319,2]
[420464170,1776107438820,-500.0,0.00014319,2]
[420464171,1776107438832,-430.78982622,0.00014319,2]
[420464172,1776107438842,-500.0,0.00014319,2]
[420464173,1776107438858,-500.0,0.00014319,2]
[420464174,1776107438872,-500.0,0.00014319,2]
[420464175,1776107438882,-500.0,0.00014319,2]
[420464176,1776107438892,-500.0,0.00014319,2]
[420464177,1776107438910,-500.0,0.00014319,2]
[420464178,1776107438927,-500.0,0.00014319,2]
[420464179,1776107438937,-482.94131469,0.00014319,2]
[420464180,1776107438947,-500.0,0.00014319,2]
[420464181,1776107438971,-500.0,0.00014319,2]
[420464182,1776107438981,-500.0,0.00014319,2]
[420464183,1776107439006,-500.0,0.00014319,2]
[420464184,1776107439043,-500.0,0.00014319,2]
[420464185,1776107439054,-500.0,0.00014319,2]
[420464186,1776107439075,-500.0,0.00014319,2]
[420464187,1776107439090,-500.0,0.00014319,2]
[420464188,1776107439100,-500.0,0.00014319,2]
[420464189,1776107439113,-500.0,0.00014319,2]
[420464190,1776107439129,-500.0,0.00014319,2]
[420464191,1776107439139,-500.0,0.00014319,2]
[420464192,1776107439149,-500.0,0.00014319,2]
[420464193,1776107439166,-500.0,0.00014319,2]
[420464194,1776107439186,-570.56426155,0.00014319,2]
[420464195,1776107439197,-500.0,0.00014319,2]
[420464196,1776107439206,-500.0,0.00014319,2]
[420464197,1776107439224,-500.0,0.00014319,2]
[420464198,1776107439234,-500.0,0.00014319,2]
[420464199,1776107439245,-500.0,0.00014319,2]
[420464200,1776107439265,-500.0,0.00014319,2]
[420464201,1776107439276,-500.0,0.00014319,2]
[420464202,1776107439286,-500.0,0.00014319,2]
[420464203,1776107439304,-500.0,0.00014319,2]
[420464204,1776107439315,-500.0,0.00014319,2]
[420464205,1776107439324,-500.0,0.00014319,2]
[420464206,1776107439346,-500.0,0.00014319,2]
[420464207,1776107439356,-500.0,0.00014319,2]
[420464208,1776107439368,-500.0,0.00014319,2]
[420464209,1776107439397,-500.0,0.00014319,2]
[420464210,1776107439407,-500.0,0.00014319,2]
[420464211,1776107439435,-500.0,0.00014319,2]
[420464212,1776107439446,-500.0,0.00014319,2]
[420464213,1776107439468,-550.0,0.00014319,2]
[420464214,1776107439483,-500.0,0.00014319,2]
[420464215,1776107439497,-500.0,0.00014319,2]
[420464216,1776107439527,-350.0,0.00014319,2]
[420464217,1776107439536,-294.23167366,0.00014319,2]
[420464218,1776107439554,-151.0,0.0001432,5]
[420464219,1776107439569,-123532.75478283,0.0001432,2]
[420464220,1776107439739,-160057.56435436,0.0001432,2]
[420464223,1776107440503,-881.21359416,0.0001432,2]
[420464224,1776107440857,-8691.40077379,0.0001432,2]
[420464252,1776107443158,-296.29477789,0.0001432,2]
[420464258,1776107443303,-334.13828703,0.0001432,2]
[420464323,1776107446029,-6657.69999985,0.0001432,2]
[420464324,1776107446531,-1302.4303084,0.0001432,2]
[420464328,1776107474657,150.0,0.00011672,30]
[420464329,1776107475101,150.0,0.00012922,30]
[420464330,1776107475540,208.54,0.00014173,30]
[420464331,1776107475915,278.06,0.00015423,30]
[420464332,1776107565156,150.0,0.00015367,30]
[420464335,1776107647293,150.0,0.00013394,30]
[420464336,1776107647778,150.0,0.00014829,30]
[420464337,1776107648282,172.78,0.00016265,30]
[420464338,1776107722270,506.0,0.000135,2]
[420464339,1776107736871,150.0,0.0001596,30]
[420464340,1776107739958,1146.0,0.00013032,2]
[420464341,1776107754174,-1998.13,0.00013032,2]
[420464342,1776107817147,150.0,0.00016128,30]
[420464343,1776107982343,150.0,0.00014422,30]
[420464344,1776107982815,150.0,0.00015968,30]
[420464345,1776107991044,168.23,0.00012849,2]
[420464346,1776108021077,2000.0,0.00012849,2]
[420464347,1776108073615,152.0,0.00010752,2]
[420464348,1776108150919,1000.0,0.00012738,2]
[420464349,1776108152913,1000.0,0.00011553,2]
[420464350,1776108152984,440.38918057,0.00011891,2]
[420464351,1776108232591,321.16261329,0.0001332,2]
[420464352,1776108251470,150.0,0.00016276,30]
[420464353,1776108286272,422.71756087,0.0001332,2]
[420464354,1776108333203,150.0,0.00012871,2]
[420464355,1776108333332,277.0,0.00012871,2]
[420464356,1776108342110,150.0,0.00016327,30]
[420464357,1776108421179,150.0,0.00014784,30]
[420464358,1776108421877,150.0,0.00016368,30]
[420464359,1776108423321,453.75,0.00013355,2]
[420464360,1776108425159,453.75879035,0.00013438,2]
[420464361,1776108546089,500.0,0.00012768,2]
[420464367,1776108589037,150.0,0.00016439,30]
[420464368,1776108626734,5532.0,0.000116,5]
[420464374,1776108632379,-506.0,0.000135,2]
[420464375,1776108632388,-200.0,0.000135,4]
[420464376,1776108632404,-10.16141805,0.000135,2]
[420464377,1776108632441,-184.83858195,0.000135,2]
[420464378,1776108632460,-300.0,0.000135,2]
[420464379,1776108632470,-48.94541805,0.00013502,2]
[420464380,1776108632485,-201.05458195,0.00013502,2]
[420464381,1776108632502,-300.0,0.00013504,2]
[420464382,1776108632512,-188.01764048,0.0001356,2]
[420464383,1776108632528,-474.75219624,0.0001356,2]
[420464384,1776108632550,-300.0,0.00013599,2]
[420464385,1776108632559,-1200.0,0.00013599,2]
[420464386,1776108632593,-150.0,0.000136,2]
[420464387,1776108632609,-150.99,0.000136,2]
[420464388,1776108632645,-9999.99,0.000136,2]
[420464389,1776108632671,-400.0,0.000136,4]
[420464390,1776108632697,-535.32653958,0.00013605,2]
[420464391,1776108632710,-150.0,0.00013619,2]
[420464392,1776108632729,-500.0,0.0001362,2]
[420464393,1776108632738,-8309.13,0.0001362,2]
[420464394,1776108632747,-7749.85,0.0001362,2]
[420464395,1776108632770,-500.0,0.00013673,2]
[420464396,1776108632779,-500.0,0.00013673,2]
[420464397,1776108632797,-500.0,0.00013673,2]
[420464398,1776108632809,-500.47252773,0.00013673,2]
[420464399,1776108632818,-462.68137363,0.00013673,2]
[420464400,1776108632833,-389.17525049,0.00013673,2]
[420464401,1776108632843,-204619.87660439,0.00013687,2]
[420464402,1776108632858,-1254.41808677,0.00013687,2]
[420464406,1776108638590,-161.60379702,0.00013677,2]
[420464407,1776108638603,-500.0,0.00013686,2]
[420464408,1776108638628,-184.31968542,0.00013686,2]
[420464409,1776108638640,-500.0,0.00013686,2]
[420464410,1776108638654,-500.0,0.00013686,2]
[420464411,1776108638671,-325.49663189,0.00013686,2]
[420464412,1776108638684,-337.16551355,0.00013686,2]
[420464413,1776108638695,-591.49714406,0.00013686,2]
[420464414,1776108638712,-500.0,0.00013686,2]
[420464415,1776108638721,-165.91222735,0.00013686,2]
[420464416,1776108638735,-500.0,0.00013686,2]
[420464417,1776108638753,-500.0,0.00013686,2]
[420464418,1776108638763,-500.0,0.00013686,2]
[420464419,1776108638775,-500.0,0.00013686,2]
[420464420,1776108638792,-626.83093961,0.00013686,2]
[420464421,1776108638802,-500.0,0.00013686,2]
[420464422,1776108638811,-500.0,0.00013686,2]
[420464423,1776108638827,-500.0,0.00013686,2]
[420464424,1776108638841,-500.0,0.00013686,2]
[420464425,1776108638853,-500.0,0.00013686,2]
[420464426,1776108638872,-447.05642615,0.00013686,2]
[420464427,1776108638887,-332012.45096752,0.00013687,2]
[420464428,1776108638902,-214883.30166362,0.00013687,2]
[420464429,1776108638918,-14737.93532932,0.00013687,2]
[420464430,1776108639022,-6730.3,0.00013687,2]
[420464433,1776108639102,-334027.15161471,0.00013687,2]
[420464447,1776108640784,-19484.75944926,0.00013687,2]
[420464448,1776108640805,-7615.0,0.00013687,2]
[420464449,1776108640821,-881.21328438,0.00013687,2]
[420464450,1776108640861,-6056.20605,0.00013687,2]
[420464459,1776108641718,-7842.6,0.00013687,2]
[420464460,1776108641733,-704.71744548,0.00013687,2]
[420464491,1776108646887,-349150.06950455,0.00013687,2]
[420464492,1776108646902,-500.0,0.00013698,2]
[420464493,1776108646913,-166.66,0.00013699,2]
[420464494,1776108646926,-200.0,0.00013699,2]
[420464495,1776108646935,-9783.24786414,0.00013699,2]
[420464496,1776108646950,-600.0,0.000137,5]
[420464497,1776108646965,-200.0,0.00013787,2]
[420464498,1776108646975,-500.0,0.00013787,2]
[420464499,1776108646986,-151.0,0.00013787,2]
[420464500,1776108647011,-500.0,0.00013787,2]
[420464501,1776108647023,-151.0,0.00013787,2]
[420464502,1776108647035,-500.0,0.00013787,2]
[420464503,1776108647057,-151.0,0.00013787,2]
[420464504,1776108647066,-500.0,0.00013787,2]
[420464505,1776108647076,-151.0,0.00013787,2]
[420464506,1776108647105,-500.0,0.00013787,2]
[420464507,1776108647114,-151.0,0.00013787,2]
[420464508,1776108647127,-500.0,0.00013787,2]
[420464509,1776108647149,-151.0,0.00013787,2]
[420464510,1776108647160,-500.0,0.00013787,2]
[420464511,1776108647182,-151.0,0.00013787,2]
[420464512,1776108647201,-500.0,0.00013787,2]
[420464514,1776108647212,-151.0,0.00013787,2]
[420464515,1776108647246,-500.0,0.00013787,2]
[420464516,1776108647255,-151.0,0.00013787,2]
[420464517,1776108647287,-500.0,0.00013787,2]
[420464518,1776108647296,-151.0,0.00013787,2]
[420464519,1776108647329,-500.0,0.00013787,2]
[420464520,1776108647339,-151.0,0.00013787,2]
[420464521,1776108647359,-500.0,0.00013787,2]
[420464522,1776108647378,-151.0,0.00013787,2]
[420464523,1776108647389,-500.0,0.00013787,2]
[420464524,1776108647426,-500.0,0.00013787,2]
[420464525,1776108647482,-500.0,0.00013787,2]
[420464526,1776108647529,-500.0,0.00013787,2]
[420464527,1776108647574,-209.08208124,0.00013787,2]
[420464528,1776108647610,-1386.78395259,0.00013787,2]
[420464529,1776108647650,-2668.9931,0.00013787,2]
[420464530,1776108647670,-50355.6327,0.00013787,2]
[420464531,1776108647688,-500.0,0.00013787,2]
[420464532,1776108647702,-218.89620935,0.00013795,2]
[420464533,1776108647718,-33057.3911,0.00013795,2]
[420464534,1776108647735,-1000.0,0.00013795,2]
[420464535,1776108647749,-5000.0,0.00013795,2]
[420464536,1776108647763,-2500.0,0.00013795,2]
[420464537,1776108647783,-634.47324399,0.00013799,2]
[420464538,1776108647797,-3023.18186097,0.00013799,2]
[420464539,1776108647811,-199.66701124,0.00013799,2]
[420464540,1776108647833,-900.0,0.000138,5]
[420464541,1776108647843,-3122.22441187,0.00013808,2]
[420464542,1776108647890,-15132.92461618,0.00013808,2]
[420464543,1776108647916,-462.91,0.0001383,2]
[420464544,1776108647933,-166.66,0.00013836,2]
[420464545,1776108647947,-9783.24786407,0.00013866,2]
[420464546,1776108647979,-614.19910851,0.00013873,2]
[420464547,1776108647993,-500.0,0.00013873,2]
[420464548,1776108648033,-500.0,0.00013873,2]
[420464549,1776108648043,-500.0,0.00013873,2]
[420464550,1776108648060,-500.0,0.00013873,2]
[420464551,1776108648074,-503.04036452,0.00013873,2]
[420464552,1776108648084,-243.41024215,0.00013873,2]
[420464553,1776108648095,-500.0,0.00013873,2]
[420464554,1776108648111,-500.0,0.00013873,2]
[420464555,1776108648122,-500.0,0.00013873,2]
[420464556,1776108648132,-500.0,0.00013873,2]
[420464557,1776108648141,-418.68915715,0.00013873,2]
[420464558,1776108648159,-605.66,0.00013887,2]
[420464559,1776108648172,-545.16268927,0.00013887,2]
[420464560,1776108648182,-906.95749576,0.00013887,2]
[420464561,1776108648199,-500.0,0.00013895,2]
[420464562,1776108648218,-500.0,0.00013895,2]
[420464563,1776108648228,-500.0,0.00013895,2]
[420464564,1776108648250,-500.0,0.00013895,2]
[420464565,1776108648268,-500.0,0.00013895,2]
[420464566,1776108648281,-500.0,0.00013895,2]
[420464567,1776108648307,-500.0,0.00013895,2]
[420464568,1776108648318,-500.0,0.00013895,2]
[420464569,1776108648350,-500.0,0.00013895,2]
[420464570,1776108648363,-500.0,0.00013895,2]
[420464571,1776108648384,-500.0,0.00013895,2]
[420464572,1776108648398,-313.60789351,0.00013895,2]
[420464573,1776108648422,-500.0,0.00013895,2]
[420464574,1776108648436,-500.0,0.00013895,2]
[420464575,1776108648447,-500.0,0.00013895,2]
[420464576,1776108648467,-500.0,0.00013895,2]
[420464577,1776108648480,-500.0,0.00013895,2]
[420464578,1776108648491,-500.0,0.00013895,2]
[420464579,1776108648510,-500.0,0.00013895,2]
[420464580,1776108648520,-500.0,0.00013895,2]
[420464581,1776108648531,-515.83238887,0.00013895,2]
[420464582,1776108648546,-500.0,0.00013895,2]
[420464583,1776108648559,-590.65,0.00013895,2]
[420464584,1776108648569,-608.36861463,0.00013895,2]
[420464585,1776108648582,-500.0,0.00013895,2]
[420464586,1776108648599,-500.0,0.00013895,2]
[420464587,1776108648609,-501.5074136,0.00013895,2]
[420464588,1776108648619,-500.0,0.00013895,2]
[420464589,1776108648632,-214.19309188,0.00013895,2]
[420464590,1776108648649,-525.09,0.00013895,2]
[420464591,1776108648661,-525.09,0.00013895,2]
[420464592,1776108648674,-525.09,0.00013895,2]
[420464593,1776108648697,-525.09,0.00013895,2]
[420464594,1776108648710,-525.09,0.00013895,2]
[420464595,1776108648729,-500.0,0.00013895,2]
[420464596,1776108648746,-500.0,0.00013895,2]
[420464597,1776108648759,-500.0,0.00013895,2]